fUST/lending_fUST_20240206
["ID","MTS","AMOUNT","RATE_DAILY","PERIOD"]
[313353889,1707220246055,-625.5,0.00027397,3]
[313353890,1707220246064,-625.5,0.00027397,3]
[313353891,1707220246073,-625.5,0.00027397,3]
[313353892,1707220246082,-625.5,0.00027397,3]
[313353893,1707220246092,-500.0,0.00027397,3]
[313353894,1707220246100,-500.0,0.00027397,3]
[313353895,1707220246110,-529.63714671,0.00027397,3]
[313353896,1707220246120,-500.0,0.00027397,15]
[313353897,1707220246129,-500.0,0.00027397,2]
[313353898,1707220246138,-500.0,0.00027397,3]
[313353899,1707220246147,-500.0,0.00027397,3]
[313353900,1707220246156,-500.0,0.00027397,3]
[313353901,1707220246165,-500.0,0.00027397,3]
[313353902,1707220246175,-500.0,0.00027397,3]
[313353903,1707220246184,-500.0,0.00027397,3]
[313353904,1707220246194,-500.0,0.00027397,3]
[313353905,1707220246203,-500.0,0.00027397,3]
[313353906,1707220246212,-500.0,0.00027397,3]
[313353907,1707220246222,-500.0,0.00027397,3]
[313353908,1707220246231,-500.0,0.00027397,3]
[313353909,1707220246240,-500.0,0.00027397,3]
[313353910,1707220246250,-500.0,0.00027397,3]
[313353911,1707220246259,-500.0,0.00027397,3]
[313353912,1707220246268,-500.0,0.00027397,3]
[313353913,1707220246278,-500.0,0.00027397,3]
[313353914,1707220246288,-500.0,0.00027397,3]
[313353915,1707220246299,-500.0,0.00027397,3]
[313353916,1707220246309,-500.0,0.00027397,2]
[313353917,1707220246320,-456.92104003,0.00027397,3]
[313353918,1707220246330,-500.0,0.00027397,3]
[313353919,1707220246340,-500.0,0.00027397,3]
[313353920,1707220246349,-500.0,0.00027397,3]
[313353921,1707220246359,-500.0,0.00027397,3]
[313353922,1707220246369,-500.0,0.00027397,3]
[313353923,1707220246379,-507.83060116,0.00027397,7]
[313353924,1707220246389,-500.0,0.00027397,3]
[313353925,1707220246398,-526.56603704,0.00027397,3]
[313353926,1707220246407,-500.0,0.00027397,3]
[313353927,1707220246416,-500.0,0.00027397,3]
[313353928,1707220246425,-500.0,0.00027397,3]
[313353929,1707220246434,-500.0,0.00027397,3]
[313353930,1707220246444,-500.0,0.00027397,3]
[313353931,1707220246453,-500.0,0.00027397,3]
[313353932,1707220246463,-500.0,0.00027397,3]
[313353933,1707220246473,-500.0,0.00027397,3]
[313353934,1707220246481,-538.63298042,0.00027397,3]
[313353935,1707220246490,-514.47606943,0.00027397,3]
[313353936,1707220246502,-500.0,0.00027397,3]
[313353937,1707220246511,-500.0,0.00027397,3]
[313353938,1707220246521,-500.0,0.00027397,3]
[313353939,1707220246533,-500.0,0.00027397,3]
[313353940,1707220246541,-500.0,0.00027397,3]
[313353941,1707220246550,-500.0,0.00027397,3]
[313353942,1707220246561,-500.0,0.00027397,3]
[313353943,1707220246569,-506.0333753,0.00027397,3]
[313353944,1707220246578,-500.0,0.00027397,3]
[313353945,1707220246587,-498.84142591,0.00027397,3]
[313353946,1707220246596,-500.0,0.00027397,3]
[313353947,1707220246605,-331.72263123,0.00027397,3]
[313353948,1707220246615,-500.16315261,0.00027397,3]
[313353949,1707220246624,-500.0,0.00027397,3]
[313353950,1707220246634,-500.0,0.00027397,3]
[313353951,1707220246644,-500.0,0.00027397,3]
[313353952,1707220246655,-500.0,0.00027397,3]
[313353953,1707220246664,-634.84595735,0.00027397,3]
[313353954,1707220246673,-500.0,0.00027397,3]
[313353955,1707220246682,-500.0,0.00027397,3]
[313353956,1707220246691,-515.72640571,0.00027397,3]
[313353957,1707220246700,-155.0,0.00027397,2]
[313353958,1707220246709,-369.15726056,0.00027397,3]
[313353959,1707220246719,-500.0,0.00027397,3]
[313353960,1707220246729,-500.00000068,0.00027397,3]
[313353961,1707220246739,-500.0,0.00027397,3]
[313353962,1707220246748,-504.86066558,0.00027397,3]
[313353963,1707220246757,-500.0,0.00027397,3]
[313353964,1707220246766,-500.0,0.00027397,3]
[313353965,1707220246776,-537.98781275,0.00027397,3]
[313353966,1707220246786,-500.0,0.00027397,3]
[313353967,1707220246795,-500.0,0.00027397,3]
[313353968,1707220246804,-500.0,0.00027397,3]
[313353969,1707220246813,-500.0,0.00027397,3]
[313353970,1707220246822,-509.61301204,0.00027397,3]
[313353971,1707220246831,-500.0,0.00027397,3]
[313353972,1707220246840,-500.0,0.00027397,3]
[313353973,1707220246849,-500.0,0.00027397,3]
[313353974,1707220246859,-500.0,0.00027397,3]
[313353975,1707220246868,-3386.15,0.00027397,3]
[313353976,1707220246878,-154.14750914,0.00027397,3]
[313353977,1707220246887,-500.0,0.00027397,2]
[313353978,1707220246897,-500.0,0.00027397,3]
[313353979,1707220246906,-500.0,0.00027397,3]
[313353980,1707220246916,-500.0,0.00027397,3]
[313353981,1707220246925,-500.0,0.00027397,3]
[313353982,1707220246934,-500.0,0.00027397,3]
[313353983,1707220246943,-500.0,0.00027397,3]
[313353984,1707220246953,-507.81389843,0.00027397,3]
[313353985,1707220246963,-505.06862647,0.00027397,3]
[313353986,1707220246972,-500.0,0.00027397,3]
[313353987,1707220246981,-500.0,0.00027397,3]
[313353988,1707220246990,-500.0,0.00027397,3]
[313353989,1707220247000,-500.0,0.00027397,3]
[313353990,1707220247009,-500.0,0.00027397,3]
[313353991,1707220247019,-415.87317131,0.00027397,3]
[313353992,1707220247029,-500.0,0.00027397,3]
[313353993,1707220247039,-500.0,0.00027397,3]
[313353994,1707220247048,-500.0,0.00027397,3]
[313353995,1707220247058,-5686.55,0.00027397,3]
[313353996,1707220247069,-500.0,0.00027397,3]
[313353997,1707220247079,-500.0,0.00027397,3]
[313353998,1707220247088,-500.0,0.00027397,3]
[313353999,1707220247098,-547.63,0.00027397,3]
[313354000,1707220247109,-500.0,0.00027397,3]
[313354001,1707220247120,-500.0,0.00027397,3]
[313354002,1707220247130,-500.0,0.00027397,3]
[313354003,1707220247141,-500.0,0.00027397,3]
[313354004,1707220247152,-500.0,0.00027397,3]
[313354005,1707220247162,-500.0,0.00027397,3]
[313354006,1707220247173,-500.0,0.00027397,3]
[313354007,1707220247183,-500.0,0.00027397,3]
[313354008,1707220247193,-500.0,0.00027397,3]
[313354009,1707220247203,-500.0,0.00027397,3]
[313354010,1707220247212,-500.0,0.00027397,3]
[313354011,1707220247222,-980.1,0.00027397,3]
[313354012,1707220247231,-493.13083754,0.00027397,3]
[313354013,1707220247240,-2788.45,0.00027397,3]
[313354014,1707220247249,-500.0,0.00027397,3]
[313354015,1707220247258,-500.0,0.00027397,3]
[313354016,1707220247268,-500.0,0.00027397,3]
[313354017,1707220247279,-1000.0,0.00027397,2]
[313354018,1707220247288,-500.0,0.00027397,3]
[313354019,1707220247297,-500.0,0.00027397,3]
[313354020,1707220247306,-500.0,0.00027397,3]
[313354021,1707220247315,-500.0,0.00027397,3]
[313354022,1707220247325,-500.0,0.00027397,3]
[313354023,1707220247334,-500.0,0.00027397,3]
[313354024,1707220247344,-500.0,0.00027397,3]
[313354025,1707220247353,-584.61,0.00027397,3]
[313354026,1707220247362,-500.0,0.00027397,3]
[313354027,1707220247372,-300.0,0.00027397,2]
[313354028,1707220247381,-1738.69,0.00027397,3]
[313354029,1707220247390,-500.0,0.00027397,3]
[313354030,1707220247399,-1955.09,0.00027397,3]
[313354031,1707220247408,-500.0,0.00027397,3]
[313354032,1707220247418,-500.0,0.00027397,3]
[313354033,1707220247427,-500.0,0.00027397,3]
[313354034,1707220247437,-500.02786097,0.00027397,3]
[313354035,1707220247446,-500.0,0.00027397,3]
[313354036,1707220247455,-500.0,0.00027397,3]
[313354037,1707220247464,-500.0,0.00027397,3]
[313354038,1707220247473,-500.0,0.00027397,3]
[313354039,1707220247482,-256.73072686,0.00027397,3]
[313354040,1707220247492,-1502.34,0.00027397,3]
[313354041,1707220247501,-500.0,0.00027397,3]
[313354042,1707220247511,-10000.0,0.00027397,10]
[313354043,1707220247520,-378.5192034,0.00027397,3]
[313354044,1707220247531,-254.15920768,0.00027397,3]
[313354045,1707220247541,-500.0,0.00027397,2]
[313354046,1707220247550,-500.0,0.00027397,3]
[313354047,1707220247560,-500.0,0.00027397,3]
[313354048,1707220247569,-1000.0,0.00027397,2]
[313354049,1707220247579,-7272.55,0.00027397,3]
[313354050,1707220247587,-500.0,0.00027397,3]
[313354051,1707220247596,-4004.03,0.00027397,3]
[313354052,1707220247605,-500.0,0.00027397,3]
[313354053,1707220247614,-311.01750499,0.00027397,3]
[313354054,1707220247623,-511.87355813,0.00027397,3]
[313354055,1707220247632,-4305.08,0.00027397,3]
[313354056,1707220247642,-500.0,0.00027397,2]
[313354057,1707220247655,-728.77,0.00027397,3]
[313354058,1707220247736,-728.77,0.00027397,3]
[313354059,1707220247746,-500.0,0.00027397,3]
[313354060,1707220247756,-728.77,0.00027397,3]
[313354061,1707220247765,-728.77,0.00027397,3]
[313354062,1707220247776,-728.77,0.00027397,3]
[313354063,1707220247785,-728.77,0.00027397,3]
[313354064,1707220247794,-728.77,0.00027397,3]
[313354065,1707220247803,-728.77,0.00027397,3]
[313354066,1707220247813,-728.77,0.00027397,3]
[313354067,1707220247822,-728.77,0.00027397,3]
[313354068,1707220247831,-728.77,0.00027397,3]
[313354069,1707220247840,-728.77,0.00027397,3]
[313354070,1707220247850,-728.77,0.00027397,3]
[313354071,1707220247859,-728.77,0.00027397,3]
[313354072,1707220247868,-150.1,0.00027397,2]
[313354073,1707220247877,-164.82456979,0.00027397,10]
[313354074,1707220247886,-728.77,0.00027399,3]
[313354075,1707220247895,-5000.0,0.000274,2]
[313354076,1707220247904,-511.77979205,0.000275,2]
[313354077,1707220247913,-159.07832902,0.00027506,2]
[313354078,1707220247923,-158.93674939,0.00027641,2]
[313354079,1707220247932,-155.46139629,0.00027666,2]
[313354080,1707220247941,-254.7364143,0.00027668,2]
[313354081,1707220247950,-155.0294556,0.00027668,2]
[313354082,1707220247961,-1443.50958165,0.00027668,2]
[313354083,1707220247970,-358.84873955,0.00027668,2]
[313354084,1707220247980,-163.09482488,0.00027668,2]
[313354085,1707220247989,-155.0294556,0.00027668,2]
[313354086,1707220247999,-1382.16421912,0.00027668,2]
[313354087,1707220248008,-5848.46839529,0.00027668,2]
[313354088,1707220248018,-214.39009445,0.00027668,2]
[313354089,1707220248028,-609.08979656,0.00027668,2]
[313354090,1707220248037,-202.19269165,0.00027668,2]
[313354091,1707220248046,-1743.90819804,0.00027668,2]
[313354092,1707220248055,-213.9454637,0.00027668,2]
[313354093,1707220248065,-264.14942563,0.00027668,2]
[313354094,1707220248074,-2820.01011613,0.00027668,2]
[313354095,1707220248083,-1864.34480987,0.00027668,2]
[313354096,1707220248093,-179.97810264,0.00027668,2]
[313354097,1707220248102,-625.5,0.0002767,3]
[313354098,1707220248112,-625.5,0.0002767,3]
[313354099,1707220248121,-625.5,0.0002767,3]
[313354100,1707220248131,-728.77,0.0002767,3]
[313354101,1707220248140,-728.77,0.0002767,3]
[313354102,1707220248149,-500.0,0.00027671,3]
[313354103,1707220248159,-500.0,0.00027671,3]
[313354104,1707220248168,-500.0,0.00027671,3]
[313354105,1707220248178,-1000.0,0.00027671,2]
[313354106,1707220248187,-500.0,0.00027671,3]
[313354107,1707220248196,-500.0,0.00027671,3]
[313354108,1707220248205,-500.0,0.00027671,2]
[313354109,1707220248214,-500.0,0.00027671,3]
[313354110,1707220248223,-500.0,0.00027671,3]
[313354111,1707220248231,-525.9780159,0.00027671,3]
[313354112,1707220248241,-500.0,0.00027671,3]
[313354113,1707220248250,-677.88,0.00027671,3]
[313354114,1707220248260,-500.0,0.00027671,3]
[313354115,1707220248269,-1034.92,0.00027671,3]
[313354116,1707220248281,-500.0,0.00027671,3]
[313354117,1707220248290,-636.35089559,0.00027671,3]
[313354118,1707220248300,-500.0,0.00027671,3]
[313354119,1707220248309,-516.7559339,0.00027671,3]
[313354120,1707220248318,-456.95887999,0.00027671,3]
[313354121,1707220248327,-500.0,0.00027671,3]
[313354122,1707220248336,-568.56581189,0.00027671,3]
[313354123,1707220248345,-500.30876273,0.00027671,3]
[313354124,1707220248354,-500.0,0.00027671,3]
[313354125,1707220248364,-500.0,0.00027671,15]
[313354126,1707220248372,-500.0,0.00027671,2]
[313354127,1707220248382,-257.13291996,0.00027671,3]
[313354128,1707220248391,-601.53365075,0.00027671,3]
[313354129,1707220248400,-500.0,0.00027671,3]
[313354130,1707220248409,-507.93919861,0.00027671,3]
[313354131,1707220248418,-500.0,0.00027671,3]
[313354132,1707220248428,-500.0,0.00027671,3]
[313354133,1707220248437,-422.43486319,0.00027671,3]
[313354134,1707220248446,-500.0,0.00027671,3]
[313354135,1707220248457,-500.0,0.00027671,3]
[313354136,1707220248466,-500.0,0.00027671,3]
[313354137,1707220248475,-500.0,0.00027671,2]
[313354138,1707220248484,-500.0,0.00027671,3]
[313354139,1707220248493,-160.62778162,0.00027671,3]
[313354140,1707220248502,-500.0,0.00027671,3]
[313354141,1707220248511,-500.0,0.00027671,3]
[313354142,1707220248520,-522.08809685,0.00027671,3]
[313354143,1707220248531,-511.40048712,0.00027671,3]
[313354144,1707220248540,-403.53925331,0.00027671,3]
[313354145,1707220248549,-477.31457838,0.00027671,3]
[313354146,1707220248560,-500.0,0.00027671,3]
[313354147,1707220248569,-500.0,0.00027671,3]
[313354148,1707220248578,-500.0,0.00027671,3]
[313354149,1707220248587,-500.0,0.00027671,3]
[313354150,1707220248596,-500.0,0.00027671,3]
[313354151,1707220248605,-500.0,0.00027671,3]
[313354152,1707220248615,-500.0,0.00027671,3]
[313354153,1707220248624,-500.0,0.00027671,3]
[313354154,1707220248633,-500.0,0.00027671,3]
[313354155,1707220248643,-500.0,0.00027671,3]
[313354156,1707220248655,-520.59011909,0.00027671,3]
[313354157,1707220248664,-500.0,0.00027671,3]
[313354158,1707220248673,-500.0,0.00027671,3]
[313354159,1707220248682,-3386.15,0.00027671,3]
[313354160,1707220248691,-500.0,0.00027671,2]
[313354161,1707220248700,-500.0,0.00027671,3]
[313354162,1707220248709,-500.0,0.00027671,3]
[313354163,1707220248718,-511.64748241,0.00027671,3]
[313354164,1707220248728,-500.0,0.00027671,3]
[313354165,1707220248737,-500.0,0.00027671,3]
[313354166,1707220248747,-500.0,0.00027671,3]
[313354167,1707220248756,-512.68408942,0.00027671,3]
[313354168,1707220248766,-500.0,0.00027671,3]
[313354169,1707220248775,-1928.48606214,0.00027671,3]
[313354170,1707220249641,155.01085076,0.00017999,3]
[313354181,1707221180786,-155.00930056,0.0001999,2]
[313354182,1707221185621,-155.00930056,0.00019991,3]
[313354183,1707221191807,-155.00930056,0.00019989,2]
[313354184,1707221191830,-433.79413633,0.00019999,2]
[313354185,1707221199039,-155.00930056,0.00019999,2]
[313354186,1707221216269,-291.04641224,0.0002,2]
[313354187,1707221216292,-300.0,0.0002,2]
[313354188,1707221296278,10000.0,0.00018,2]
[313354189,1707221306337,10000.0,0.00018,2]
[313354190,1707221313534,10000.0,0.00018,2]
[313354191,1707221324033,10000.0,0.00018,2]
[313354193,1707221331224,10000.0,0.00018,2]
[313354194,1707221338666,10000.0,0.00018,2]
[313354195,1707221344941,10000.0,0.00018,2]
[313354196,1707221352387,10000.0,0.00018,2]
[313354197,1707221360012,10000.0,0.00018,2]
[313354198,1707221366784,10000.0,0.00018,2]
[313354269,1707221441292,-323.94218908,0.00021608,2]
[313354270,1707221441301,-155.00930056,0.00021609,4]
[313354271,1707221441311,-214.89061999,0.00021611,2]
[313354272,1707221441320,-641.33925845,0.00021612,2]
[313354273,1707221441330,-650.23458575,0.00021612,2]
[313354274,1707221441339,-313.11416557,0.00023,6]
[313354275,1707221441350,-2915.3940093,0.00023885,2]
[313354276,1707221441360,-746.83368601,0.00024061,2]
[313354277,1707221441369,-1306.52869448,0.00024061,2]
[313354278,1707221441379,-4737.09564271,0.00025,2]
[313354279,1707221441388,-4526.95534279,0.00025,2]
[313354280,1707221441401,-2877.4219876,0.00025,2]
[313354281,1707221441410,-535.03190243,0.00025,2]
[313354282,1707221441419,-155.00930056,0.00025,2]
[313354283,1707221441429,-503.68979648,0.00025107,2]
[313354284,1707221441438,-180.87883427,0.00025207,2]
[313354285,1707221441447,-178.9020055,0.00025207,2]
[313354286,1707221441456,-11319.07480982,0.00026,2]
[313354287,1707221441465,-1019.55580829,0.00026,2]
[313354288,1707221441474,-175.41198831,0.00026466,15]
[313354289,1707221441486,-24.58801169,0.00026466,15]
[313354290,1707221441495,-423.18,0.0002649,3]
[313354291,1707221441505,-791.67,0.0002649,3]
[313354292,1707221441514,-659.73,0.0002649,3]
[313354293,1707221441524,-194.91998197,0.00026498,2]
[313354294,1707221441533,-176.56947733,0.00026499,2]
[313354295,1707221441545,-18.68313029,0.00026499,2]
[313354296,1707221441554,-626.05340804,0.000265,3]
[313354405,1707221946528,1076.23,0.0003,120]
[313354457,1707222632216,-155.00930056,0.00023848,4]
[313354459,1707222632226,-1513.05908057,0.00023978,2]
[313354461,1707222632235,-440.72857192,0.00023979,2]
[313354463,1707222632244,-733.85334646,0.00024065,2]
[313354465,1707222632253,-50179.29331714,0.00024075,2]
[313354521,1707222638312,-3961.75200378,0.00024075,2]
[313354531,1707222638425,-1357.89999915,0.00024075,2]
[313354549,1707222641598,-463.31867277,0.00024075,2]
[313354550,1707222641607,-519.55119016,0.00024079,3]
[313354551,1707222641620,-1305.51880984,0.00024079,3]
[313354552,1707222641630,-1520.9,0.00024079,3]
[313354553,1707222641640,-16975.38761936,0.00024089,2]
[313354554,1707222641649,-677.04054409,0.00025207,2]
[313354555,1707222641791,-20.4266329,0.00025207,2]
[313354556,1707222641802,-264.2518299,0.00025207,2]
[313354557,1707222641811,-620.00007499,0.00026463,2]
[313354558,1707222641821,-200.0,0.00026481,15]
[313354559,1707222641830,-1267.41,0.0002649,3]
[313354560,1707222641839,-4435.03543432,0.00026498,2]
[313354561,1707222641848,-224.60271247,0.00026498,2]
[313354562,1707222641858,-254.23686751,0.00026498,2]
[313354563,1707222641867,-1548.97348012,0.00026498,2]
[313354564,1707222641877,-216.76275422,0.00026498,2]
[313354565,1707222641887,-1484.58263583,0.00026498,2]
[313354566,1707222641898,-533.94315513,0.00026499,2]
[313354567,1707222641909,-1959.44289484,0.00026499,2]
[313354568,1707222641918,-500.0,0.00026499,2]
[313354569,1707222641928,-500.0,0.00026499,2]
[313354570,1707222641937,-500.0,0.00026499,2]
[313354571,1707222641947,-500.0,0.00026499,2]
[313354572,1707222641956,-500.0,0.00026499,2]
[313354573,1707222641966,-500.0,0.00026499,2]
[313354574,1707222641976,-500.0,0.00026499,2]
[313354575,1707222641985,-500.0,0.00026499,2]
[313354576,1707222641995,-500.0,0.00026499,2]
[313354577,1707222642004,-500.0,0.00026499,2]
[313354578,1707222642013,-500.0,0.00026499,2]
[313354579,1707222642023,-500.0,0.00026499,2]
[313354580,1707222642032,-500.0,0.00026499,2]
[313354581,1707222642041,-500.0,0.00026499,2]
[313354582,1707222642051,-349.41466368,0.00026499,2]
[313354680,1707223832482,-155.00465014,0.00023746,4]
[313354681,1707223832492,-1513.05908057,0.00023847,2]
[313354683,1707223832502,-289.77934755,0.00023848,2]
[313354685,1707223832514,-647.87948358,0.00023848,2]
[313354686,1707223832523,-1734.60209231,0.00024065,2]
[313354687,1707223832533,-2763.55710248,0.00024072,2]
[313354688,1707223832544,-52.50464782,0.00024072,2]
[313354689,1707223832553,-1894.62620648,0.00024086,2]
[313354718,1707223838611,-500.0,0.00023745,2]
[313354719,1707223838620,-456.44826219,0.00024086,2]
[313354720,1707223838630,-1289.59584384,0.00024086,2]
[313354721,1707223838642,-228.325422,0.00024416,2]
[313354722,1707223838651,-217.51388423,0.00025207,2]
[313354723,1707223838661,-239.62095951,0.00025207,2]
[313354724,1707223838671,-528.75685317,0.00025961,2]
[313354725,1707223838681,-3119.05429636,0.00026226,2]
[313354726,1707223838690,-1575.3584482,0.00026233,2]
[313354727,1707223838700,-562.09,0.0002629,3]
[313354728,1707223838709,-962.5,0.0002629,3]
[313354729,1707223838719,-5303.36552262,0.000263,2]
[313354730,1707223838731,-3224.51336499,0.000263,2]
[313354731,1707223838743,-75380.1672534,0.000263,2]
[313354732,1707223838753,-367.9354686,0.00026301,2]
[313354733,1707223838763,-191.29534954,0.00026397,2]
[313354734,1707223838773,-385.63750043,0.00026397,3]
[313354735,1707223838785,-2465.67574349,0.00026494,2]
[313354736,1707223838795,-2616.69206269,0.00026495,2]
[313354737,1707223838804,-2872.50360392,0.00026496,2]
[313354738,1707223838813,-157.04477798,0.00026496,2]
[313354739,1707223838824,-265.16864309,0.00026496,2]
[313354740,1707223838833,-713.45973222,0.00026496,2]
[313354741,1707223838843,-155.31962523,0.00026497,2]
[313354742,1707223838852,-4051.11121861,0.00026497,2]
[313354743,1707223838863,-500.0,0.00026497,2]
[313354744,1707223838873,-500.0,0.00026497,2]
[313354745,1707223838885,-500.0,0.00026497,2]
[313354746,1707223838894,-500.0,0.00026497,2]
[313354747,1707223838903,-500.0,0.00026497,2]
[313354748,1707223838913,-500.0,0.00026497,2]
[313354749,1707223838922,-500.0,0.00026497,2]
[313354750,1707223838932,-500.0,0.00026497,2]
[313354751,1707223838942,-500.0,0.00026497,2]
[313354752,1707223838952,-500.0,0.00026497,2]
[313354753,1707223838963,-500.0,0.00026497,2]
[313354754,1707223838973,-500.0,0.00026497,2]
[313354755,1707223838982,-500.0,0.00026497,2]
[313354756,1707223838991,-500.0,0.00026497,2]
[313354757,1707223839001,-500.0,0.00026497,2]
[313354758,1707223839010,-500.0,0.00026497,2]
[313354759,1707223839020,-500.0,0.00026497,2]
[313354760,1707223839030,-500.0,0.00026497,2]
[313354761,1707223839039,-500.0,0.00026497,2]
[313354762,1707223839049,-500.0,0.00026497,2]
[313354763,1707223839059,-450.69532319,0.00026497,2]
[313354764,1707223839069,-500.0,0.00026497,2]
[313354765,1707223839078,-500.0,0.00026497,2]
[313354766,1707223839087,-565.58829736,0.00026498,2]
[313354767,1707223839096,-7977.34507232,0.00026498,2]
[313354768,1707223839105,-181.4071721,0.00026498,2]
[313354769,1707223839115,-556.75044234,0.00026498,2]
[313354770,1707223839125,-1433.12724431,0.00026498,2]
[313354771,1707223839137,-1858.63739895,0.00026498,2]
[313354772,1707223839145,-260.89555211,0.00026498,2]
[313354773,1707223839155,-294.34441752,0.00026498,2]
[313354774,1707223839165,-1017.67059015,0.00026498,2]
[313354775,1707223839174,-1269.76151482,0.00026498,2]
[313354776,1707223839185,-1229.84476717,0.00026498,2]
[313354777,1707223839194,-1374.02857099,0.00026498,2]
[313354778,1707223839205,-155.23060247,0.00026498,2]
[313354779,1707223839213,-3215.40595025,0.00026498,2]
[313354780,1707223839224,-324.01777816,0.00026498,2]
[313354781,1707223839233,-720.16060598,0.00026498,2]
[313354782,1707223839244,-426.52191671,0.00026498,2]
[313354783,1707223839253,-155.64691624,0.00026498,2]
[313354784,1707223839263,-1791.801044,0.00026498,2]
[313354785,1707223839272,-323.81557453,0.00026498,2]
[313354786,1707223839281,-330.18381509,0.00026498,2]
[313354787,1707223839290,-19906.99800967,0.00026498,2]
[313354788,1707223839299,-179.26850264,0.00026498,2]
[313354789,1707223839308,-167.59520983,0.00026498,2]
[313354790,1707223839317,-523.28534542,0.00026498,2]
[313354791,1707223839326,-296.5448353,0.00026498,2]
[313354792,1707223839335,-3983.74796343,0.00026498,2]
[313354793,1707223839345,-352.1195832,0.00026498,2]
[313354794,1707223839354,-155.00465014,0.00026499,2]
[313354795,1707223839363,-280.43479172,0.00026499,2]
[313354796,1707223839372,-906.27199158,0.00026499,2]
[313354797,1707223839381,-440.68868773,0.00026499,2]
[313354798,1707223839397,-325.14960342,0.00026499,2]
[313354799,1707223839406,-8445.69000451,0.000265,3]
[313354800,1707223839419,-2783.26,0.000265,3]
[313354811,1707223841753,-523.28534542,0.000265,3]
[313354819,1707223841822,-2822.93898739,0.000265,3]
[313354821,1707223841834,-2465.74508165,0.000265,3]
[313354916,1707223843544,-660.2790832,0.000265,3]
[313354917,1707223843557,-268.24199987,0.000265,3]
[313354918,1707223843570,-27811.19488791,0.000265,3]
[313354971,1707223846533,-433.2729988,0.0002649,3]
[313354972,1707223846547,-368.8070012,0.0002649,3]
[313354973,1707223846556,-10489.77607147,0.000265,3]
[313355068,1707225038782,-155.00930056,0.00023984,4]
[313355069,1707225038792,-98.02486072,0.00023984,2]
[313355083,1707225041889,-302.8671087,0.00023984,2]
[313355084,1707225041900,-857.51774458,0.00023984,2]
[313355085,1707225041948,-254.64936657,0.00023984,2]
[313355086,1707225041959,-164.29062038,0.00023985,2]
[313355087,1707225041968,-1705.45267911,0.00024086,2]
[313355088,1707225041980,-1810.58485037,0.00024086,2]
[313355089,1707225041989,-1451.79377897,0.00024092,2]
[313355090,1707225042000,-429.75046763,0.00024092,2]
[313355091,1707225042009,-363.76712,0.00024619,2]
[313355092,1707225042018,-5000.0,0.00026267,2]
[313355093,1707225042027,-164.29062038,0.00026398,2]
[313355094,1707225042036,-158.78242563,0.00026398,2]
[313355095,1707225042046,-1962.52,0.00026476,3]
[313355096,1707225042056,-8705.67915779,0.00026486,2]
[313355111,1707225043738,-2018.60426295,0.00026486,2]
[313355113,1707225043751,-3060.50057371,0.00026486,2]
[313355115,1707225043765,-70123.26214656,0.00026486,2]
[313355116,1707225043775,-2014.43657787,0.00026498,2]
[313355117,1707225043784,-14358.17371755,0.00026498,2]
[313355119,1707225043794,-3166.85694087,0.00026498,2]
[313355121,1707225043804,-323.81557453,0.00026498,2]
[313355123,1707225043813,-518.77986544,0.00026498,2]
[313355125,1707225043823,-1017.67059015,0.00026498,2]
[313355127,1707225043840,-2605.0,0.00026499,2]
[313355129,1707225043849,-17551.40200443,0.00026499,7]
[313355130,1707225043858,-500.0,0.00026499,2]
[313355132,1707225043868,-500.0,0.00026499,2]
[313355133,1707225043878,-272.29948035,0.00026499,2]
[313355134,1707225043888,-43103.53513054,0.000265,3]